[Event "Titled Tuesday Blitz February 15 Late 2022"]
[White "Grigoriants, Sergey"]
[Black "Dreev, Aleksey"]
[WhiteFideId "4130804"]
[BlackFideId "4100107"]
[WhiteElo "2502"]
[BlackElo "2636"]
[Result "0-1"]
[Round "07"]
[TimeControl "180+1"]
[Date "2022.02.15"]
[WhiteClock "0:00:02"]
[BlackClock "0:00:35"]

1. e4 {[%clk 0:02:45]}  c5 {[%clk 0:02:58]} 2. Nf3 {[%clk 0:02:45]}  d6 {[%clk 0:02:59]} 3. d4 {[%clk 0:02:42]}  cxd4 {[%clk 0:02:59]} 4. Nxd4 {[%clk 0:02:43]}  Nf6 {[%clk 0:02:59]} 5. Nc3 {[%clk 0:02:43]}  Nc6 {[%clk 0:03:00]} 6. Bg5 {[%clk 0:02:37]}  Bd7 {[%clk 0:03:00]} 7. Nb3 {[%clk 0:02:33]}  a6 {[%clk 0:02:49]} 8. Qd2 {[%clk 0:02:26]}  e6 {[%clk 0:02:47]} 9. O-O-O {[%clk 0:02:23]}  Be7 {[%clk 0:02:47]} 10. Bxf6 {[%clk 0:02:19]}  gxf6 {[%clk 0:02:39]} 11. f4 {[%clk 0:02:19]}  b5 {[%clk 0:02:38]} 12. g3 {[%clk 0:02:10]}  Qb6 {[%clk 0:02:36]} 13. Kb1 {[%clk 0:02:09]}  h5 {[%clk 0:02:33]} 14. Ne2 {[%clk 0:01:59]}  a5 {[%clk 0:02:30]} 15. Nbd4 {[%clk 0:01:58]}  b4 {[%clk 0:02:26]} 16. Bg2 {[%clk 0:01:56]}  a4 {[%clk 0:02:24]} 17. Nxc6 {[%clk 0:01:52]}  Bxc6 {[%clk 0:02:24]} 18. Nd4 {[%clk 0:01:53]}  Bb7 {[%clk 0:02:22]} 19. Rhe1 {[%clk 0:01:50]}  a3 {[%clk 0:02:19]} 20. b3 {[%clk 0:01:45]}  Qc5 {[%clk 0:02:14]} 21. Re3 {[%clk 0:01:35]}  Rc8 {[%clk 0:02:10]} 22. Rc1 {[%clk 0:01:18]}  f5 {[%clk 0:02:03]} 23. c3 {[%clk 0:01:08]}  fxe4 {[%clk 0:02:03]} 24. Bxe4 {[%clk 0:00:56]}  Bxe4+ {[%clk 0:01:56]} 25. Rxe4 {[%clk 0:00:57]}  bxc3 {[%clk 0:01:55]} 26. Qd3 {[%clk 0:00:58]}  d5 {[%clk 0:01:35]} 27. Re2 {[%clk 0:00:58]}  Bf6 {[%clk 0:01:31]} 28. Nc2 {[%clk 0:00:43]}  Kf8 {[%clk 0:01:31]} 29. Rd1 {[%clk 0:00:41]}  Kg7 {[%clk 0:01:28]} 30. f5 {[%clk 0:00:38]}  e5 {[%clk 0:01:27]} 31. Qxd5 {[%clk 0:00:31]}  Rhd8 {[%clk 0:01:26]} 32. Qh1 {[%clk 0:00:31]}  Rb8 {[%clk 0:01:20]} 33. Rxd8 {[%clk 0:00:27]}  Rxd8 {[%clk 0:01:19]} 34. Qc1 {[%clk 0:00:27]}  e4 {[%clk 0:01:13]} 35. Rxe4 {[%clk 0:00:24]}  Rd2 {[%clk 0:01:12]} 36. g4 {[%clk 0:00:21]}  Qf2 {[%clk 0:01:11]} 37. gxh5 {[%clk 0:00:17]}  Qxf5 {[%clk 0:01:05]} 38. Qg1+ {[%clk 0:00:15]}  Kh7 {[%clk 0:00:51]} 39. Qe1 {[%clk 0:00:15]}  Bh4 {[%clk 0:00:47]} 40. Qh1 {[%clk 0:00:07]}  Qd5 {[%clk 0:00:37]} 41. Kc1 {[%clk 0:00:02]}  Bg5 {[%clk 0:00:35]} 0-1


[Site "https://www.chess.com"]

[Event "Titled Tuesday Blitz February 15 Late 2022"]
[White "Hess, Robert"]
[Black "Przybylski, Wojciech"]
[WhiteFideId "2022036"]
[BlackFideId "1117599"]
[WhiteElo "2557"]
[BlackElo "2133"]
[Result "1-0"]
[Round "07"]
[TimeControl "180+1"]
[Date "2022.02.16"]
[WhiteClock "0:00:05"]
[BlackClock "0:00:02"]

1. b3 {[%clk 0:03:00]}  e5 {[%clk 0:02:57]} 2. Bb2 {[%clk 0:03:01]}  Nc6 {[%clk 0:02:57]} 3. e3 {[%clk 0:03:02]}  Nf6 {[%clk 0:02:57]} 4. d3 {[%clk 0:03:02]}  d5 {[%clk 0:02:57]} 5. Nd2 {[%clk 0:03:03]}  Bd6 {[%clk 0:02:56]} 6. a3 {[%clk 0:03:03]}  O-O {[%clk 0:02:55]} 7. h3 {[%clk 0:03:02]}  a5 {[%clk 0:02:55]} 8. Ne2 {[%clk 0:03:03]}  Re8 {[%clk 0:02:54]} 9. g4 {[%clk 0:03:03]}  Nd7 {[%clk 0:02:50]} 10. Bg2 {[%clk 0:03:03]}  Ne7 {[%clk 0:02:50]} 11. c4 {[%clk 0:02:58]}  c6 {[%clk 0:02:50]} 12. Qc2 {[%clk 0:02:58]}  b5 {[%clk 0:02:46]} 13. cxb5 {[%clk 0:02:49]}  cxb5 {[%clk 0:02:46]} 14. Nc3 {[%clk 0:02:50]}  Bb7 {[%clk 0:02:35]} 15. Nxb5 {[%clk 0:02:50]}  Rc8 {[%clk 0:02:35]} 16. Qd1 {[%clk 0:02:39]}  Bb8 {[%clk 0:02:33]} 17. O-O {[%clk 0:02:32]}  Ba6 {[%clk 0:02:27]} 18. a4 {[%clk 0:02:28]}  Qb6 {[%clk 0:02:25]} 19. Qb1 {[%clk 0:01:34]}  Bxb5 {[%clk 0:02:15]} 20. axb5 {[%clk 0:01:34]}  Qxb5 {[%clk 0:02:15]} 21. Rc1 {[%clk 0:01:34]}  Nc5 {[%clk 0:02:00]} 22. Bf1 {[%clk 0:01:21]}  d4 {[%clk 0:01:52]} 23. exd4 {[%clk 0:01:06]}  exd4 {[%clk 0:01:41]} 24. Bxd4 {[%clk 0:00:52]}  Ne6 {[%clk 0:01:41]} 25. Be3 {[%clk 0:00:45]}  Nd5 {[%clk 0:01:32]} 26. Nc4 {[%clk 0:00:18]}  Nxe3 {[%clk 0:01:11]} 27. fxe3 {[%clk 0:00:19]}  Qb4 {[%clk 0:00:48]} 28. Ra4 {[%clk 0:00:15]}  Qb7 {[%clk 0:00:47]} 29. Bg2 {[%clk 0:00:14]}  Qc7 {[%clk 0:00:40]} 30. Kf1 {[%clk 0:00:14]}  Qg3 {[%clk 0:00:31]} 31. Qc2 {[%clk 0:00:12]}  Nc5 {[%clk 0:00:25]} 32. Rxa5 {[%clk 0:00:07]}  Re6 {[%clk 0:00:22]} 33. Qf2 {[%clk 0:00:04]}  Rf6 {[%clk 0:00:22]} 34. Qxf6 {[%clk 0:00:04]}  gxf6 {[%clk 0:00:22]} 35. Nb6 {[%clk 0:00:04]}  Qxe3 {[%clk 0:00:18]} 36. Rd1 {[%clk 0:00:03]}  Qf4+ {[%clk 0:00:17]} 37. Kg1 {[%clk 0:00:02]}  Qe3+ {[%clk 0:00:16]} 38. Kf1 {[%clk 0:00:02]}  Qf4+ {[%clk 0:00:15]} 39. Kg1 {[%clk 0:00:02]}  Re8 {[%clk 0:00:15]} 40. Nd5 {[%clk 0:00:02]}  Qd4+ {[%clk 0:00:15]} 41. Kh1 {[%clk 0:00:01]}  Qe5 {[%clk 0:00:14]} 42. Kg1 {[%clk 0:00:01]}  Nxb3 {[%clk 0:00:13]} 43. Ra4 {[%clk 0:00:01]}  Bd6 {[%clk 0:00:12]} 44. Re4 {[%clk 0:00:01]}  Qh2+ {[%clk 0:00:09]} 45. Kf1 {[%clk 0:00:02]}  Rxe4 {[%clk 0:00:09]} 46. dxe4 {[%clk 0:00:02]}  Be5 {[%clk 0:00:08]} 47. Ne7+ {[%clk 0:00:02]}  Kg7 {[%clk 0:00:08]} 48. Nf5+ {[%clk 0:00:03]}  Kg6 {[%clk 0:00:08]} 49. Nh4+ {[%clk 0:00:04]}  Kg7 {[%clk 0:00:06]} 50. Nf5+ {[%clk 0:00:04]}  Kg6 {[%clk 0:00:06]} 51. Rd8 {[%clk 0:00:04]}  Qf4+ {[%clk 0:00:05]} 52. Kg1 {[%clk 0:00:04]}  Qc1+ {[%clk 0:00:05]} 53. Kf2 {[%clk 0:00:04]}  Qf4+ {[%clk 0:00:05]} 54. Ke2 {[%clk 0:00:04]}  Nd4+ {[%clk 0:00:04]} 55. Nxd4 {[%clk 0:00:04]}  Qg3 {[%clk 0:00:04]} 56. Rg8+ {[%clk 0:00:04]}  Kh6 {[%clk 0:00:02]} 57. Nf5# {[%clk 0:00:05]} 1-0


[Site "https://www.chess.com"]

[Event "Titled Tuesday Blitz February 15 Late 2022"]
[White "Iljin, Timofey"]
[Black "Gubajdullin, Alexei"]
[WhiteFideId "14110180"]
[BlackFideId "4141202"]
[WhiteElo "2396"]
[BlackElo "2268"]
[Result "1-0"]
[Round "07"]
[TimeControl "180+1"]
[Date "2022.02.16"]
[WhiteClock "0:00:33"]
[BlackClock "0:01:30"]

1. d4 {[%clk 0:03:00]}  g6 {[%clk 0:02:59]} 2. c4 {[%clk 0:03:01]}  Bg7 {[%clk 0:02:59]} 3. e4 {[%clk 0:03:01]}  d6 {[%clk 0:02:58]} 4. Nc3 {[%clk 0:03:01]}  Nf6 {[%clk 0:02:58]} 5. f4 {[%clk 0:03:00]}  O-O {[%clk 0:02:57]} 6. Nf3 {[%clk 0:03:01]}  Na6 {[%clk 0:02:57]} 7. Bd3 {[%clk 0:02:59]}  c5 {[%clk 0:02:57]} 8. d5 {[%clk 0:02:59]}  e6 {[%clk 0:02:57]} 9. O-O {[%clk 0:02:58]}  exd5 {[%clk 0:02:57]} 10. cxd5 {[%clk 0:02:59]}  Nc7 {[%clk 0:02:57]} 11. a4 {[%clk 0:02:57]}  b6 {[%clk 0:02:56]} 12. Re1 {[%clk 0:02:52]}  Re8 {[%clk 0:02:55]} 13. h3 {[%clk 0:02:46]}  Ba6 {[%clk 0:02:52]} 14. Bxa6 {[%clk 0:02:40]}  Nxa6 {[%clk 0:02:52]} 15. e5 {[%clk 0:02:38]}  dxe5 {[%clk 0:02:47]} 16. fxe5 {[%clk 0:02:39]}  Nd7 {[%clk 0:02:47]} 17. Bg5 {[%clk 0:02:29]}  Qb8 {[%clk 0:02:43]} 18. e6 {[%clk 0:02:23]}  fxe6 {[%clk 0:02:43]} 19. dxe6 {[%clk 0:02:24]}  Ne5 {[%clk 0:02:42]} 20. Nxe5 {[%clk 0:01:23]}  Bxe5 {[%clk 0:02:41]} 21. Qe2 {[%clk 0:01:24]}  Bd4+ {[%clk 0:02:37]} 22. Kh1 {[%clk 0:01:24]}  Nb4 {[%clk 0:02:36]} 23. Nb5 {[%clk 0:01:08]}  Qg3 {[%clk 0:02:29]} 24. Bh6 {[%clk 0:00:42]}  Nd3 {[%clk 0:02:28]} 25. Nxd4 {[%clk 0:00:36]}  Nxe1 {[%clk 0:02:01]} 26. Rxe1 {[%clk 0:00:35]}  cxd4 {[%clk 0:01:59]} 27. e7 {[%clk 0:00:36]}  Qd6 {[%clk 0:01:53]} 28. Qf3 {[%clk 0:00:35]}  Rac8 {[%clk 0:01:44]} 29. Qb3+ {[%clk 0:00:34]}  Kh8 {[%clk 0:01:41]} 30. Qf7 {[%clk 0:00:34]}  Rxe7 {[%clk 0:01:30]} 31. Bg7# {[%clk 0:00:33]} 1-0


[Site "https://www.chess.com"]

[Event "Titled Tuesday Blitz February 15 Late 2022"]
[White "Jobava, Baadur"]
[Black "Vusatiuk, Vladimir"]
[WhiteFideId "13601520"]
[BlackFideId "14118610"]
[WhiteElo "2617"]
[BlackElo "2157"]
[Result "1-0"]
[Round "07"]
[TimeControl "180+1"]
[Date "2022.02.15"]
[WhiteClock "0:02:17"]
[BlackClock "0:00:05"]

1. d4 {[%clk 0:03:00]}  Nf6 {[%clk 0:02:58]} 2. Nc3 {[%clk 0:03:01]}  d5 {[%clk 0:02:55]} 3. Bf4 {[%clk 0:03:02]}  c6 {[%clk 0:02:55]} 4. e3 {[%clk 0:03:02]}  Bf5 {[%clk 0:02:47]} 5. f3 {[%clk 0:03:01]}  h6 {[%clk 0:02:44]} 6. g4 {[%clk 0:03:01]}  Bg6 {[%clk 0:02:44]} 7. Bd3 {[%clk 0:03:01]}  Bxd3 {[%clk 0:02:43]} 8. cxd3 {[%clk 0:03:02]}  e6 {[%clk 0:02:30]} 9. Nge2 {[%clk 0:03:02]}  g5 {[%clk 0:02:22]} 10. Bg3 {[%clk 0:03:01]}  h5 {[%clk 0:02:19]} 11. gxh5 {[%clk 0:02:58]}  Nxh5 {[%clk 0:02:18]} 12. Kd2 {[%clk 0:02:58]}  Nd7 {[%clk 0:02:08]} 13. Qb3 {[%clk 0:02:52]}  Qb6 {[%clk 0:02:02]} 14. Rag1 {[%clk 0:02:51]}  Qxb3 {[%clk 0:01:59]} 15. axb3 {[%clk 0:02:52]}  Be7 {[%clk 0:01:50]} 16. Bf2 {[%clk 0:02:50]}  f5 {[%clk 0:01:32]} 17. h4 {[%clk 0:02:49]}  gxh4 {[%clk 0:01:26]} 18. Bxh4 {[%clk 0:02:50]}  Kf7 {[%clk 0:01:10]} 19. Bxe7 {[%clk 0:02:49]}  Kxe7 {[%clk 0:01:11]} 20. b4 {[%clk 0:02:43]}  a6 {[%clk 0:01:05]} 21. Na4 {[%clk 0:02:43]}  Kf7 {[%clk 0:01:00]} 22. Nc5 {[%clk 0:02:42]}  Nxc5 {[%clk 0:01:01]} 23. bxc5 {[%clk 0:02:43]}  Nf6 {[%clk 0:01:01]} 24. Kc3 {[%clk 0:02:36]}  Rxh1 {[%clk 0:00:59]} 25. Rxh1 {[%clk 0:02:37]}  Rg8 {[%clk 0:01:00]} 26. Nf4 {[%clk 0:02:37]}  Rg3 {[%clk 0:00:52]} 27. Rf1 {[%clk 0:02:37]}  Nd7 {[%clk 0:00:46]} 28. Kb4 {[%clk 0:02:37]}  e5 {[%clk 0:00:43]} 29. dxe5 {[%clk 0:02:38]}  Nxe5 {[%clk 0:00:43]} 30. Ka5 {[%clk 0:02:39]}  Nxf3 {[%clk 0:00:23]} 31. Kb6 {[%clk 0:02:38]}  Nd2 {[%clk 0:00:23]} 32. Re1 {[%clk 0:02:34]}  Nb3 {[%clk 0:00:18]} 33. d4 {[%clk 0:02:34]}  Rf3 {[%clk 0:00:13]} 34. Nd3 {[%clk 0:02:33]}  Kf6 {[%clk 0:00:11]} 35. Kxb7 {[%clk 0:02:33]}  Nxd4 {[%clk 0:00:10]} 36. exd4 {[%clk 0:02:19]}  Rxd3 {[%clk 0:00:10]} 37. Kxc6 {[%clk 0:02:20]}  Rxd4 {[%clk 0:00:10]} 38. Kd6 {[%clk 0:02:20]}  Rd2 {[%clk 0:00:09]} 39. c6 {[%clk 0:02:17]}  Rxb2 {[%clk 0:00:05]} 40. Rc1 {[%clk 0:02:17]}  Rb8 {[%clk 0:00:04]} 41. c7 {[%clk 0:02:17]}  Rh8 {[%clk 0:00:05]} 42. c8=Q {[%clk 0:02:16]}  Rxc8 {[%clk 0:00:04]} 43. Rxc8 {[%clk 0:02:17]}  d4 {[%clk 0:00:04]} 44. Rf8+ {[%clk 0:02:17]}  Kg5 {[%clk 0:00:04]} 45. Ke5 {[%clk 0:02:17]}  d3 {[%clk 0:00:04]} 46. Rg8+ {[%clk 0:02:16]}  Kh4 {[%clk 0:00:05]} 47. Kf4 {[%clk 0:02:17]}  Kh3 {[%clk 0:00:05]} 48. Rd8 {[%clk 0:02:16]}  a5 {[%clk 0:00:05]} 49. Rxd3+ {[%clk 0:02:17]} 1-0


[Site "https://www.chess.com"]

[Event "Titled Tuesday Blitz February 15 Late 2022"]
[White "Jones, Gawain C B"]
[Black "Weetik, Vjacheslav"]
[WhiteFideId "409561"]
[BlackFideId "4153472"]
[WhiteElo "2657"]
[BlackElo "2469"]
[Result "1-0"]
[Round "07"]
[TimeControl "180+1"]
[Date "2022.02.15"]
[WhiteClock "0:01:31"]
[BlackClock "0:00:10"]

1. g3 {[%clk 0:03:00]}  e5 {[%clk 0:02:55]} 2. c4 {[%clk 0:03:00]}  Nc6 {[%clk 0:02:47]} 3. Bg2 {[%clk 0:03:01]}  g6 {[%clk 0:02:48]} 4. h4 {[%clk 0:02:59]}  h6 {[%clk 0:02:45]} 5. e3 {[%clk 0:02:50]}  Bg7 {[%clk 0:02:45]} 6. h5 {[%clk 0:02:49]}  g5 {[%clk 0:02:44]} 7. Ne2 {[%clk 0:02:50]}  d6 {[%clk 0:02:42]} 8. d4 {[%clk 0:02:50]}  Nf6 {[%clk 0:02:30]} 9. Bxc6+ {[%clk 0:02:44]}  bxc6 {[%clk 0:02:30]} 10. dxe5 {[%clk 0:02:45]}  Ng4 {[%clk 0:02:02]} 11. exd6 {[%clk 0:02:33]}  cxd6 {[%clk 0:01:47]} 12. Nbc3 {[%clk 0:02:29]}  Ne5 {[%clk 0:01:42]} 13. f4 {[%clk 0:02:22]}  Nxc4 {[%clk 0:01:37]} 14. Qa4 {[%clk 0:02:21]}  Be6 {[%clk 0:00:58]} 15. Qxc6+ {[%clk 0:02:20]}  Kf8 {[%clk 0:00:58]} 16. b3 {[%clk 0:01:58]}  Rc8 {[%clk 0:00:58]} 17. Qe4 {[%clk 0:01:58]}  Qa5 {[%clk 0:00:44]} 18. Qd3 {[%clk 0:01:49]}  Nxe3 {[%clk 0:00:20]} 19. Bxe3 {[%clk 0:01:45]}  Bxc3+ {[%clk 0:00:20]} 20. Nxc3 {[%clk 0:01:45]}  Rxc3 {[%clk 0:00:20]} 21. Qxd6+ {[%clk 0:01:38]}  Kg8 {[%clk 0:00:17]} 22. Bd2 {[%clk 0:01:33]}  Re3+ {[%clk 0:00:10]} 23. Kf2 {[%clk 0:01:31]} 1-0


[Site "https://www.chess.com"]

[Event "Titled Tuesday Blitz February 15 Late 2022"]
[White "Kim, Sergey"]
[Black "Martinez Alcantara, Jose Eduardo"]
[WhiteFideId "13700570"]
[BlackFideId "3805662"]
[WhiteElo "2614"]
[BlackElo "2690"]
[Result "0-1"]
[Round "07"]
[TimeControl "180+1"]
[Date "2022.02.15"]
[WhiteClock "0:00:18"]
[BlackClock "0:00:31"]

1. d4 {[%clk 0:03:00]}  d5 {[%clk 0:02:59]} 2. c4 {[%clk 0:03:01]}  dxc4 {[%clk 0:02:59]} 3. e3 {[%clk 0:03:00]}  Nf6 {[%clk 0:03:00]} 4. Bxc4 {[%clk 0:03:00]}  e6 {[%clk 0:03:01]} 5. Nf3 {[%clk 0:03:00]}  a6 {[%clk 0:03:01]} 6. O-O {[%clk 0:03:00]}  c5 {[%clk 0:03:02]} 7. Qe2 {[%clk 0:03:00]}  Nbd7 {[%clk 0:02:55]} 8. Rd1 {[%clk 0:02:58]}  b5 {[%clk 0:02:55]} 9. Bb3 {[%clk 0:02:58]}  Bb7 {[%clk 0:02:53]} 10. Nc3 {[%clk 0:02:57]}  Qc7 {[%clk 0:02:46]} 11. Bd2 {[%clk 0:02:47]}  c4 {[%clk 0:02:37]} 12. Bc2 {[%clk 0:02:45]}  b4 {[%clk 0:02:37]} 13. Na4 {[%clk 0:02:43]}  Be7 {[%clk 0:02:30]} 14. Rac1 {[%clk 0:02:38]}  Rc8 {[%clk 0:02:21]} 15. e4 {[%clk 0:02:35]}  O-O {[%clk 0:02:20]} 16. Bg5 {[%clk 0:02:31]}  h6 {[%clk 0:02:05]} 17. Bh4 {[%clk 0:02:30]}  Rfe8 {[%clk 0:02:00]} 18. Bb1 {[%clk 0:02:27]}  Qa5 {[%clk 0:01:58]} 19. b3 {[%clk 0:02:19]}  c3 {[%clk 0:01:58]} 20. Bd3 {[%clk 0:02:15]}  Nb6 {[%clk 0:01:41]} 21. Nxb6 {[%clk 0:02:03]}  Qxb6 {[%clk 0:01:42]} 22. Bc2 {[%clk 0:01:51]}  a5 {[%clk 0:01:40]} 23. Ne5 {[%clk 0:01:42]}  Rcd8 {[%clk 0:01:33]} 24. Nc4 {[%clk 0:01:37]}  Qa7 {[%clk 0:01:34]} 25. Bxf6 {[%clk 0:01:27]}  Bxf6 {[%clk 0:01:32]} 26. e5 {[%clk 0:01:27]}  Be7 {[%clk 0:01:32]} 27. Qd3 {[%clk 0:01:24]}  g6 {[%clk 0:01:30]} 28. Qe3 {[%clk 0:01:23]}  Kg7 {[%clk 0:01:25]} 29. Kh1 {[%clk 0:01:17]}  Rd7 {[%clk 0:01:21]} 30. f4 {[%clk 0:00:57]}  Red8 {[%clk 0:01:19]} 31. f5 {[%clk 0:00:56]}  Bg5 {[%clk 0:01:06]} 32. Qg3 {[%clk 0:00:46]}  exf5 {[%clk 0:00:58]} 33. Bxf5 {[%clk 0:00:38]}  Rxd4 {[%clk 0:00:57]} 34. Rxd4 {[%clk 0:00:25]}  Qxd4 {[%clk 0:00:58]} 35. Rf1 {[%clk 0:00:25]}  gxf5 {[%clk 0:00:56]} 36. Nd6 {[%clk 0:00:23]}  Rxd6 {[%clk 0:00:54]} 37. exd6 {[%clk 0:00:23]}  c2 {[%clk 0:00:54]} 38. d7 {[%clk 0:00:19]}  Qxd7 {[%clk 0:00:32]} 39. h4 {[%clk 0:00:18]}  f4 {[%clk 0:00:31]} 0-1


[Site "https://www.chess.com"]

[Event "Titled Tuesday Blitz February 15 Late 2022"]
[White "Komissarov, Alexey"]
[Black "De Arruda, Leandro Formes"]
[WhiteFideId "4176545"]
[BlackFideId "22722009"]
[WhiteElo "2216"]
[BlackElo "1780"]
[Result "1-0"]
[Round "07"]
[TimeControl "180+1"]
[Date "2022.02.16"]
[WhiteClock "0:00:35"]
[BlackClock "0:00:36"]

1. e4 {[%clk 0:03:00]}  e6 {[%clk 0:02:57]} 2. d4 {[%clk 0:02:59]}  d5 {[%clk 0:02:58]} 3. Nc3 {[%clk 0:02:56]}  dxe4 {[%clk 0:02:58]} 4. Nxe4 {[%clk 0:02:55]}  Nd7 {[%clk 0:02:59]} 5. Nf3 {[%clk 0:02:54]}  Ngf6 {[%clk 0:03:00]} 6. Nxf6+ {[%clk 0:02:54]}  Nxf6 {[%clk 0:03:01]} 7. Ne5 {[%clk 0:02:53]}  Be7 {[%clk 0:03:01]} 8. Bd3 {[%clk 0:02:51]}  O-O {[%clk 0:03:02]} 9. O-O {[%clk 0:02:49]}  c5 {[%clk 0:03:03]} 10. dxc5 {[%clk 0:02:44]}  Bxc5 {[%clk 0:03:04]} 11. Bg5 {[%clk 0:02:41]}  Bd4 {[%clk 0:03:01]} 12. Bxf6 {[%clk 0:02:19]}  Qxf6 {[%clk 0:02:46]} 13. Bxh7+ {[%clk 0:02:14]}  Kxh7 {[%clk 0:02:47]} 14. Qxd4 {[%clk 0:02:09]}  g6 {[%clk 0:02:24]} 15. Rad1 {[%clk 0:01:51]}  Qf5 {[%clk 0:02:10]} 16. Rd3 {[%clk 0:01:45]}  f6 {[%clk 0:01:53]} 17. Rh3+ {[%clk 0:01:18]}  Kg7 {[%clk 0:01:46]} 18. Qh4 {[%clk 0:01:07]}  Qh5 {[%clk 0:01:22]} 19. Qf4 {[%clk 0:00:44]}  fxe5 {[%clk 0:01:12]} 20. Qe3 {[%clk 0:00:42]}  Qf5 {[%clk 0:00:41]} 21. Qh6+ {[%clk 0:00:41]}  Kf6 {[%clk 0:00:38]} 22. Qxf8+ {[%clk 0:00:36]}  Kg5 {[%clk 0:00:36]} 23. Qe7+ {[%clk 0:00:35]} 1-0


[Site "https://www.chess.com"]

[Event "Titled Tuesday Blitz February 15 Late 2022"]
[White "Kostiukov, Alexandr"]
[Black "Zhurbinsky, David"]
[WhiteFideId "14108100"]
[BlackFideId "2072904"]
[WhiteElo "2202"]
[BlackElo "2525"]
[Result "0-1"]
[Round "07"]
[TimeControl "180+1"]
[Date "2022.02.16"]
[WhiteClock "0:00:01"]
[BlackClock "0:00:10"]

1. g3 {[%clk 0:02:53]}  Nf6 {[%clk 0:02:59]} 2. Bg2 {[%clk 0:02:53]}  d5 {[%clk 0:03:00]} 3. d3 {[%clk 0:02:53]}  c5 {[%clk 0:03:00]} 4. e4 {[%clk 0:02:53]}  Nc6 {[%clk 0:03:01]} 5. Qe2 {[%clk 0:02:51]}  dxe4 {[%clk 0:03:01]} 6. dxe4 {[%clk 0:02:50]}  e5 {[%clk 0:03:01]} 7. c3 {[%clk 0:02:43]}  Bg4 {[%clk 0:03:00]} 8. Nf3 {[%clk 0:02:43]}  Be7 {[%clk 0:02:55]} 9. h3 {[%clk 0:02:43]}  Bh5 {[%clk 0:02:48]} 10. O-O {[%clk 0:02:32]}  O-O {[%clk 0:02:37]} 11. Na3 {[%clk 0:02:30]}  a6 {[%clk 0:02:31]} 12. Rd1 {[%clk 0:02:06]}  Qc7 {[%clk 0:02:27]} 13. Nc4 {[%clk 0:02:03]}  Rad8 {[%clk 0:02:19]} 14. Bg5 {[%clk 0:01:56]}  h6 {[%clk 0:02:11]} 15. Bxf6 {[%clk 0:01:55]}  Bxf6 {[%clk 0:02:11]} 16. Ne3 {[%clk 0:01:55]}  Ne7 {[%clk 0:02:07]} 17. Nd5 {[%clk 0:01:47]}  Nxd5 {[%clk 0:02:06]} 18. Rxd5 {[%clk 0:01:47]}  Rxd5 {[%clk 0:01:55]} 19. exd5 {[%clk 0:01:47]}  c4 {[%clk 0:01:44]} 20. Re1 {[%clk 0:01:28]}  Re8 {[%clk 0:01:39]} 21. Qe3 {[%clk 0:01:08]}  Qd6 {[%clk 0:01:16]} 22. Nd2 {[%clk 0:01:00]}  b5 {[%clk 0:01:08]} 23. Ne4 {[%clk 0:00:58]}  Qe7 {[%clk 0:01:01]} 24. d6 {[%clk 0:00:54]}  Qe6 {[%clk 0:01:01]} 25. Nxf6+ {[%clk 0:00:39]}  Qxf6 {[%clk 0:01:00]} 26. Qc5 {[%clk 0:00:33]}  Bg6 {[%clk 0:00:27]} 27. Rd1 {[%clk 0:00:22]}  Bd3 {[%clk 0:00:26]} 28. Bf1 {[%clk 0:00:21]}  e4 {[%clk 0:00:24]} 29. b3 {[%clk 0:00:16]}  Rd8 {[%clk 0:00:16]} 30. bxc4 {[%clk 0:00:14]}  bxc4 {[%clk 0:00:17]} 31. Bg2 {[%clk 0:00:01]}  Rxd6 {[%clk 0:00:10]} 0-1


[Site "https://www.chess.com"]

[Event "Titled Tuesday Blitz February 15 Late 2022"]
[White "Kozin, Yuri"]
[Black "Arabidze, Meri"]
[WhiteFideId "4129920"]
[BlackFideId "13604040"]
[WhiteElo "2528"]
[BlackElo "2329"]
[Result "0-1"]
[Round "07"]
[TimeControl "180+1"]
[Date "2022.02.16"]
[WhiteClock "0:00:19"]
[BlackClock "0:00:17"]

1. e4 {[%clk 0:03:00]}  c5 {[%clk 0:03:00]} 2. Nf3 {[%clk 0:03:01]}  e6 {[%clk 0:03:00]} 3. d4 {[%clk 0:03:01]}  cxd4 {[%clk 0:03:01]} 4. Nxd4 {[%clk 0:03:02]}  Nc6 {[%clk 0:03:02]} 5. Nc3 {[%clk 0:03:01]}  a6 {[%clk 0:03:02]} 6. Nb3 {[%clk 0:03:00]}  Nf6 {[%clk 0:03:01]} 7. Bd3 {[%clk 0:03:01]}  b5 {[%clk 0:03:01]} 8. f4 {[%clk 0:03:00]}  d6 {[%clk 0:02:57]} 9. Qf3 {[%clk 0:02:56]}  Bb7 {[%clk 0:02:56]} 10. Be3 {[%clk 0:02:55]}  Be7 {[%clk 0:02:56]} 11. g4 {[%clk 0:02:55]}  d5 {[%clk 0:02:34]} 12. e5 {[%clk 0:02:48]}  Nd7 {[%clk 0:02:27]} 13. O-O-O {[%clk 0:02:40]}  Qc7 {[%clk 0:02:22]} 14. Nd4 {[%clk 0:02:38]}  b4 {[%clk 0:02:11]} 15. Nce2 {[%clk 0:02:37]}  a5 {[%clk 0:02:08]} 16. Nb5 {[%clk 0:02:31]}  Qb8 {[%clk 0:02:06]} 17. Ned4 {[%clk 0:02:25]}  Nxd4 {[%clk 0:01:59]} 18. Bxd4 {[%clk 0:02:25]}  Ba6 {[%clk 0:01:52]} 19. Qe2 {[%clk 0:02:17]}  Nc5 {[%clk 0:01:29]} 20. Nd6+ {[%clk 0:02:06]}  Bxd6 {[%clk 0:01:26]} 21. Bxa6 {[%clk 0:02:05]}  Nxa6 {[%clk 0:00:38]} 22. exd6 {[%clk 0:02:04]}  Qxd6 {[%clk 0:00:38]} 23. Be5 {[%clk 0:01:58]}  Qc6 {[%clk 0:00:31]} 24. Bxg7 {[%clk 0:01:55]}  Rg8 {[%clk 0:00:31]} 25. Bd4 {[%clk 0:01:52]}  Nc5 {[%clk 0:00:31]} 26. Bxc5 {[%clk 0:01:50]}  Qxc5 {[%clk 0:00:31]} 27. f5 {[%clk 0:01:50]}  Qc4 {[%clk 0:00:23]} 28. Qg2 {[%clk 0:01:11]}  Rxg4 {[%clk 0:00:20]} 29. Qh3 {[%clk 0:01:01]}  Rc8 {[%clk 0:00:20]} 30. Rd2 {[%clk 0:00:58]}  Qe4 {[%clk 0:00:20]} 31. Rhd1 {[%clk 0:00:52]}  Qxf5 {[%clk 0:00:19]} 32. Qe3 {[%clk 0:00:46]}  Re4 {[%clk 0:00:18]} 33. Qa7 {[%clk 0:00:45]}  Rec4 {[%clk 0:00:17]} 34. Rd3 {[%clk 0:00:20]}  Rxc2+ {[%clk 0:00:17]} 35. Kb1 {[%clk 0:00:21]}  Rc1+ {[%clk 0:00:17]} 36. Rxc1 {[%clk 0:00:19]}  Qxd3+ {[%clk 0:00:17]} 0-1


[Site "https://www.chess.com"]